{"text_format":"2","workbook":"xlsx","n_sheets":2,"sheets":["Registreringsark","Økonomisk pejling"],"not_rendered":{"charts":2,"images":2,"macros":0,"external_links":0,"defined_names":0,"comments":0,"pivot_tables":0},"unopened":[],"bounds":{"document_bytes":16777216,"sheet_cells":100000,"run_cost":"one","rows_first":2000,"rows_last":500,"rows_between":2000,"halvings":0,"cell_chars":16384,"cell_head_chars":4096},"cells_cut":0,"cells_raw":0,"read":"whole","date_system":"1900"}

{"sheet":"Registreringsark","index":0,"n_rows":49,"n_cols":13,"rows_kept":49,"cut":false,"hidden":false,"merged":[[46,1,46,10],[38,2,38,3],[39,2,39,3],[40,2,40,3],[41,2,41,3],[42,2,42,3],[37,1,37,4],[9,1,9,6],[27,1,27,7],[18,1,18,10],[6,1,6,12]]}
[]
[]
[]
[]
[null,"Økonomisk pejlemærke"]
[]
[null,"Frivilliggruppe INDSÆT NAVN"]
[{"$nulls":12},"FORKLARING"]
[]
[null,"Tilført værdi",{"$nulls":10}," 'Frivilligrolle' betyder at du skal beskrive frivilligrollen som en lønnet stilling. F.eks. kan en frivillig i en genbrugsbutik beskrives som butiksmedarbejder. Har de frivillige mange forskellige og usammenlignelige roller laver du en gennemsnitsrolle beskrivelse"]
[null,null,"Frivilligrolle","Timeløn i betalt job","Timer i perioden","Tilført værdi for perioden","Akkum. tilført værdi",{"$nulls":5}," 'Timeløn i betalt job' - her skal du lave et estimat for, hvad det ville koste i timen, hvis en ansat i en sådan stilling løser den frivilliges opgave. Har de frivillige mange forskellige og usammenlignelige roller laver du en gennemsnits timeløn"]
[null,"1. år, jan-jun","Beskriv rollen",0,0,{"$f":"D12*E12","v":0},{"$f":"F12","v":0},{"$nulls":5}," 'Timer i perioden' er det samlede antal timer, de frivillige har lagt i perioden (bemærk at der er tale om 6 måneder)"]
[null,"1. år, jul-dec","Beskriv rollen",0,0,{"$f":"D13*E13","v":0},{"$f":"G12+F13","v":0}]
[null,"2. år, jan-jun","Beskriv rollen",0,0,{"$f":"D14*E14","v":0},{"$f":"G13+F14","v":0}]
[null,"2. år, jul-dec","Beskriv rollen",0,0,{"$f":"D15*E15","v":0},0]
[null,"Total",null,null,{"$f":"SUM(E12:E15)","v":0},{"$f":"SUM(F12:F15)","v":0}]
[]
[]
[null,"Investering i projektet/aktiviteten - lønudgifter som projektet/aktiviten har, fordi der involveres frivillige",{"$nulls":10}," 'PL timer' betyder det samlede antal timer projektlederen/tovholderen (eller en leder) har lagt i perioden (bemærk at der er tale om 6 måneder)"]
[null,null,"Projektleder timer","PL timeløn","PL lønudgift periode","Frivilligkoordinator timer","FK timeløn","FK lønudgift periode","Medarbejder 1 timer","M1 timeløn","M1 lønudgift periode",null," 'PL timeløn' her skal du lave et estimat for hvad projektlederen/tovholderen koster i timen"]
[null,"1. år, jan-jun",0,0,{"$f":"C21*D21","v":0},0,0,{"$f":"F21*G21","v":0},0,0,{"$f":"I21*J21","v":0},null," Såfremdeles med Frivilligkoordinator og Medarbejder"]
[null,"1. år, jul-dec",0,0,{"$f":"C22*D22","v":0},0,0,{"$f":"F22*G22","v":0},0,0,{"$f":"I22*J22","v":0},null," Hvis en eller flere kategorier ikke skal benyttes skal værdien blot være '0'"]
[null,"2. år, jan-jun",0,0,{"$f":"C23*D23","v":0},0,0,0,0,0,0,null," Du kan vælge at samle alle medarbejdertimer under 'Medarbejder 1' hvis der er flere end en medarbjeder udover PL og FK"]
[null,"2. år, jul-dec",0,0,0,0,0,0,0,0,0]
[null,"Total",{"$f":"SUM(C21:C24)","v":0},null,{"$f":"SUM(E21:E24)","v":0},{"$f":"SUM(F21:F24)","v":0},null,{"$f":"SUM(H21:H24)","v":0},{"$f":"SUM(I21:I24)","v":0},null,{"$f":"SUM(K21:K24)","v":0}]
[null,"Samlede lønudgifter",{"$f":"E25+H25+K25","v":0}]
[]
[null,"Investering i projektet/aktiviteten - øvrige udgifter som projektet/aktiviten har, fordi der involveres frivillige",{"$nulls":10}," I dette skema angiver du et etimat for udgifter på de angivne poster"]
[null,null,"Kurser for frivillige","Kurser for ansatte","Bil/transport","Fester, temaftner mv.","Materialer og forplejning","Andet",{"$nulls":4}," Hvis en eller flere kategorier ikke benyttes skal værdien blot være '0'"]
[null,"1. år, jan-jun",0,0,0,0,0,0]
[null,"1. år, jul-dec",0,0,0,0,0,0]
[null,"2. år, jan-jun",0,0,0,0,0,0]
[null,"2. år, jul-dec",0,0,0,0,0,0]
[null,"Total",{"$f":"SUM(C30:C33)","v":0},{"$f":"SUM(D30:D33)","v":0},0,0,0,0]
[null,"Samlede udgifter til frivillige",{"$f":"SUM(C34:H34)","v":0}]
[]
[]
[null,"Samlet investering i projektet"]
[null,null,"Samlede udgifter (løn+øvrig)",null,"Akkummuleret total"]
[null,"1. år, jan-jun",{"$f":"E21+H21+K21+SUM(C30:H30)","v":0},null,{"$f":"C40+D40","v":0}]
[null,"1. år, jul-dec",{"$f":"E22+H22+K22+SUM(C31:H31)","v":0},null,{"$f":"E40+C41+D41","v":0}]
[null,"2. år, jan-jun",{"$f":"E23+H23+K23+SUM(C32:H32)","v":0},null,{"$f":"E41+C42+D42","v":0}]
[null,"2. år, jul-dec",0,null,{"$f":"E42+C43+D43","v":0}]
[]
[]
[]
[null,"Du skal ikke selv foretage nogle registreringer i de grå felter"]
[]
[null,"Det økonomiske pejlemærket er en del af de tre pejlemærker udarbejdet i samarbejde med Ingerfair for Diakonissestiftelsens projekt FrivilligLaboratoriet"]

{"sheet":"Økonomisk pejling","index":1,"n_rows":53,"n_cols":4,"rows_kept":53,"cut":false,"hidden":false,"merged":[[6,1,6,3],[15,1,15,3],[50,1,50,10]]}
[]
[]
[]
[]
[null,"Økonomisk pejlemærke"]
[]
[null,"OVIR model"]
[null,null,"Nøgletal","Forklaring"]
[null,"Tilført værdi i kr.",{"$f":"Registreringsark!F16","v":0}]
[null,"Organisationens samlede investering i projektet/aktiviteten",{"$f":"Registreringsark!C26+Registreringsark!C35","v":0}]
[null,"OVIR",{"$f":"C9/C10","v":{"$error":"#DIV/0!"}},"Er tallet større en 1 er investeringen rentabel"]
[null,null,null,"Er tallet = 1 rammer i nulpunkt"]
[null,null,null,"Er tallet mindre end 1 er investeringen ikke rentabel"]
[]
[]
[null,"Analyser"]
[null,null,null,"Forklaring"]
[null,null,null,"Nulpunktsanalysen angiver i hvornår den tilførte værdi i form af frivilligtimer overstiger den løbende investering i projektet. Det er akkumulerede udgifter og tilført værdi.\nAnalysen uddyber selve OVIR tallet på en tidsskala."]
{"$rows_empty":13}
[null,null,null,"Forklaring"]
[null,null,null,"Forholdet mellem tilført værdi og investering giver et billede af det enkelte halvår.\nAnalysen uddyber forholdet mellem faktisk tilført værdi og udgifter i et given halvår."]
{"$rows_empty":17}
[null,"Du skal ikke selv foretage nogle registreringer i de grå felter"]
[]
[null,"Det økonomiske pejlemærket er en del af de tre pejlemærker udarbejdet i samarbejde med Ingerfair for Diakonissestiftelsens projekt FrivilligLaboratoriet"]